bitfinex-derivatives/quotes_ETHF0:USTF0_20210110
["timestamp","ask_amount","ask_price","bid_price","bid_amount"]
[1610272387733,5.57919,1340.5,1340.4,4.00959]
[1610272387931,25.43087694,1340.5,1340.4,4.00959]
[1610272389131,29.44046694,1340.5,1340.4,4.00959]
[1610272390532,25.43087694,1340.5,1340.4,4.00959]
[1610272392638,1.5696,1340.5,1340.4,4.00959]
[1610272392937,23.86127694,1340.6,1340.4,4.00959]
[1610272393138,19.28227076,1340.6,1340.4,4.00959]
[1610272393537,4.00959,1340.7,1340.4,4.00959]
[1610272393739,19.28227076,1340.7,1340.4,4.00959]
[1610272394738,19.28227076,1340.6,1340.4,4.00959]
[1610272394938,21.22947076,1340.6,1340.4,4.00959]
[1610272395138,23.29186076,1340.5,1340.4,4.00959]
[1610272398544,19.28227076,1340.5,1340.4,4.00959]
[1610272399646,21.22947076,1340.6,1340.4,4.00959]
[1610272399844,19.28227076,1340.5,1340.4,4.00959]
[1610272400744,21.22947076,1340.6,1340.4,4.00959]
[1610272400945,19.28227076,1340.5,1340.4,4.00959]
[1610272401145,23.29186076,1340.5,1340.4,4.00959]
[1610272402246,23.29186076,1340.5,1339.9,6.4112545]
[1610272403248,4.00959,1340.3,1340.0,4.00959]
[1610272403447,23.29186076,1340.3,1340.0,4.00959]
[1610272403646,25.69776076,1340.3,1340.0,4.00959]
[1610272404349,6.41549,1340.3,1340.0,4.00959]
[1610272405047,25.69776076,1340.3,1340.0,4.00959]
[1610272405247,21.68817076,1340.3,1340.2,4.00959]
[1610272406049,2.4059,1340.3,1340.2,4.00959]
[1610272406249,21.68817076,1340.3,1340.2,4.00959]
[1610272408251,2.4059,1340.3,1340.2,4.00959]
[1610272408651,51.3798,1340.3,1340.2,4.00959]
[1610272409353,70.66207076,1340.3,1340.2,4.00959]
[1610272409554,72.24977076,1340.3,1340.2,4.00959]
[1610272409954,72.24977076,1340.3,1339.9,6.4112545]
[1610272411158,76.25936076,1340.3,1340.1,4.00959]
[1610272411357,56.97709,1340.3,1340.1,4.00959]
[1610272411557,52.9675,1340.3,1340.1,4.00959]
[1610272412158,72.24977076,1340.3,1340.1,4.00959]
[1610272413157,56.97709,1340.3,1340.1,4.00959]
[1610272413359,52.9675,1340.3,1340.1,4.00959]
[1610272413559,72.24977076,1340.3,1340.1,4.00959]
[1610272414562,52.9675,1340.3,1340.1,4.00959]
[1610272414763,72.24977076,1340.3,1340.1,4.00959]
[1610272416066,52.9675,1340.3,1340.1,4.00959]
[1610272416866,72.24977076,1340.3,1340.1,4.00959]
[1610272417168,4.00959,1340.2,1340.1,4.00959]
[1610272418169,1.5877,1340.3,1340.1,4.00959]
[1610272418571,19.28227076,1340.4,1340.1,4.00959]
[1610272418971,20.0,1340.5,1340.1,4.00959]
[1610272419171,39.28227076,1340.5,1340.3,4.00959]
[1610272420273,20.0,1340.5,1340.3,4.00959]
[1610272420673,39.28227076,1340.5,1340.3,4.00959]
[1610272420872,39.28227076,1340.5,1339.8,6.41150957]
[1610272421272,39.28227076,1340.5,1340.2,4.00959]
[1610272421874,20.0,1340.5,1340.2,4.00959]
[1610272422273,39.28227076,1340.5,1340.2,4.00959]
[1610272423176,59.2281,1340.3,1339.7,6.41192226]
[1610272423777,61.6954,1340.3,1339.7,6.41192226]
[1610272425181,61.6954,1340.3,1340.2,4.00959]
[1610272428184,2.4673,1340.3,1340.2,4.00959]
[1610272428685,20.0,1340.5,1340.2,4.00959]
[1610272429286,20.0,1340.5,1340.4,4.00959]
[1610272435594,15.0,1340.5,1340.4,4.00959]
[1610272438795,21.1657,1340.5,1340.4,4.00959]
[1610272443610,16.587264,1340.5,1340.4,4.00959]
[1610272444007,35.86953476,1340.5,1340.4,4.00959]
[1610272445206,35.86953476,1340.5,1339.9,6.41064275]
[1610272445408,35.86953476,1340.5,1340.2,4.00959]
[1610272446207,35.86953476,1340.5,1339.5,6.41204793]
[1610272446809,35.86953476,1340.5,1339.4,6.41230347]
[1610272447009,29.70383476,1340.5,1339.4,6.41230347]
[1610272447409,29.70383476,1340.5,1340.4,5.49654044]
[1610272447907,29.70383476,1340.5,1340.2,5.4973619]
[1610272449309,4.00959,1340.3,1340.2,5.4973619]
[1610272449510,23.29186076,1340.3,1340.2,5.4973619]
[1610272449713,25.37526076,1340.3,1340.2,5.4973619]
[1610272453115,25.37526076,1340.3,1340.1,5.49727992]
[1610272453915,25.37526076,1340.3,1339.8,5.49861687]
[1610272455320,4.00959,1339.9,1339.8,5.49861687]
[1610272455517,23.29186076,1339.9,1339.8,5.49861687]
[1610272455716,25.36526076,1339.9,1339.8,5.49861687]
[1610272458620,25.36526076,1339.9,1339.5,4.00959]
[1610272459421,4.00959,1339.6,1339.5,4.00959]
[1610272459620,23.29186076,1339.6,1339.5,4.00959]
[1610272459820,25.31946076,1339.6,1339.5,4.00959]
[1610272461119,25.31946076,1339.6,1338.9,6.41406676]
[1610272461320,25.31946076,1339.6,1339.5,4.00959]
[1610272462021,2.0276,1339.6,1339.5,4.00959]
[1610272463425,21.30987076,1339.6,1339.5,4.00959]
[1610272467526,25.31946076,1339.6,1339.5,4.00959]
[1610272468627,80.50636076,1339.6,1339.5,4.00959]
[1610272469028,75.9249445,1339.6,1339.5,4.00959]
[1610272469228,77.6696445,1339.6,1339.5,4.00959]
[1610272469827,77.6696445,1339.6,1338.9,6.41406676]
[1610272471030,77.6696445,1339.6,1338.6,6.41476354]
[1610272471431,73.6600545,1339.6,1339.5,5.49862113]
[1610272473432,77.6696445,1339.6,1339.5,5.49862113]
[1610272474934,77.6696445,1339.6,1339.4,5.49941886]
[1610272475134,22.4827445,1339.6,1339.4,5.49941886]
[1610272479939,22.4827445,1339.6,1339.3,5.49952169]
[1610272480539,22.4827445,1339.6,1338.1,6.41667034]
[1610272481543,18.4731545,1339.6,1338.4,4.00959]
[1610272481944,18.4731545,1339.6,1338.1,6.41667034]
[1610272482343,18.4731545,1339.6,1339.5,4.58583204]
[1610272482544,18.4731545,1339.6,1337.1,6.42171321]
[1610272482944,18.4731545,1339.6,1336.2,2.1242]
[1610272482945,18.4731545,1339.6,1339.4,4.12864776]
[1610272483145,18.4731545,1339.6,1336.6,6.42234096]
[1610272483544,18.4731545,1339.6,1336.5,4.00959]
[1610272483545,4.00959,1336.7,1336.5,4.00959]
[1610272483743,6.49179,1336.7,1336.5,4.00959]
[1610272484144,23.2202445,1336.7,1336.3,6.42391847]
[1610272484345,23.2202445,1336.7,1336.0,6.42527391]
[1610272485046,6.49179,1336.7,1336.0,6.42527391]
[1610272485446,6.49179,1336.7,1336.3,4.00959]
[1610272486548,2.4822,1336.7,1336.3,4.00959]
[1610272487551,2.4822,1336.7,1336.5,4.00959]
[1610272488652,16.7284545,1339.2,1336.5,4.00959]
[1610272489452,4.00959,1337.3,1337.1,4.00959]
[1610272489853,6.38759,1337.3,1337.1,4.00959]
[1610272490452,2.378,1337.3,1337.1,4.00959]
[1610272490853,2.378,1337.3,1336.2,6.42364882]
[1610272491457,2.378,1337.3,1337.2,4.00959]
[1610272492257,2.378,1337.3,1336.3,2.0125]
[1610272493462,2.378,1337.3,1337.2,4.00959]
[1610272494264,4.00959,1337.5,1337.2,4.00959]
[1610272494265,1.7994234,1337.5,1337.2,4.00959]
[1610272494861,1.7994234,1337.5,1337.4,5.5059268]
[1610272495462,4.00959,1337.7,1337.4,9.5155168]
[1610272495862,6.24479,1337.7,1337.4,9.5155168]
[1610272496962,6.24479,1337.7,1336.2,8.24940162]
[1610272497162,6.24479,1337.7,1336.5,6.42258328]
[1610272497363,2.2352,1337.7,1336.5,6.42258328]
[1610272497562,4.00959,1337.6,1337.4,4.00959]
[1610272499665,4.00959,1337.6,1337.2,4.00959]
[1610272501568,4.00959,1337.3,1337.2,4.00959]
[1610272502669,4.00959,1337.3,1336.2,1.8634]
[1610272502870,4.00959,1337.3,1335.9,2.0008]
[1610272503070,4.00959,1337.3,1335.6,1.7941]
[1610272503270,50.13429,1337.3,1334.9,5.9737]
[1610272503672,4.00959,1336.9,1336.8,4.00959]
[1610272503869,5.60699,1336.9,1336.8,4.00959]
[1610272504672,5.60699,1336.9,1334.9,5.9737]
[1610272505573,5.60699,1336.9,1336.6,4.00959]
[1610272506774,1.5974,1336.9,1336.6,4.00959]
[1610272507573,4.00959,1336.7,1336.6,4.00959]
[1610272507774,1.5974,1336.9,1336.6,4.00959]
[1610272508275,1.5974,1336.9,1336.8,5.50683312]
[1610272508877,46.1247,1337.3,1336.8,5.50683312]
[1610272509078,62.8531545,1337.3,1336.8,5.50683312]
[1610272509577,4.00959,1336.9,1336.8,5.50683312]
[1610272509776,6.39019,1336.9,1336.8,5.50683312]
[1610272512382,6.39019,1336.9,1336.6,5.50763671]
[1610272512783,42.6692,1336.8,1336.6,5.50763671]
[1610272512980,42.6692,1336.8,1336.5,5.50825705]
[1610272513582,4.00959,1336.6,1336.5,5.50825705]
[1610272513782,5.58009,1336.6,1336.5,5.50825705]
[1610272515387,1.5705,1336.6,1336.5,5.50825705]
[1610272515587,1.5705,1336.6,1336.5,9.51784705]
[1610272518190,59.3976545,1336.8,1336.5,9.51784705]
[1610272518392,42.6692,1336.8,1336.5,9.51784705]
[1610272519692,2.3806,1336.9,1336.7,4.00959]
[1610272519892,4.00959,1337.3,1336.7,4.00959]
[1610272520892,20.7380445,1337.3,1336.7,4.00959]
[1610272521593,16.7284545,1337.3,1336.9,4.00959]
[1610272521895,1.667,1337.4,1336.9,4.00959]
[1610272522095,8.0941,1337.3,1336.9,4.00959]
[1610272522799,24.8225545,1337.3,1336.9,4.00959]
[1610272523200,24.8225545,1337.3,1336.7,5.50710669]
[1610272523599,24.8225545,1337.3,1336.8,4.00959]
[1610272523799,24.8225545,1337.3,1336.5,5.50720398]
[1610272524699,51.9763,1336.8,1336.5,5.50720398]
[1610272525603,4.00959,1336.7,1336.5,9.51679398]
[1610272526000,51.9763,1336.8,1336.5,9.51679398]
[1610272527601,51.9763,1336.8,1336.7,4.00959]
[1610272528803,2.0523,1336.8,1336.7,4.00959]
[1610272529604,6.06189,1336.8,1336.7,4.00959]
[1610272529803,6.06189,1336.8,1336.6,5.50660954]
[1610272530003,6.06189,1336.8,1336.2,5.50783828]
[1610272530303,6.06189,1336.8,1336.1,5.50805015]
[1610272530706,22.7903445,1336.8,1336.1,5.50805015]
[1610272531606,44.8649,1336.7,1336.4,4.00959]
[1610272533609,44.8649,1336.7,1336.6,4.00959]
[1610272541117,2.0523,1336.8,1336.6,4.00959]
[1610272541318,1.667,1337.4,1336.6,4.00959]
[1610272541718,4.00959,1337.6,1337.3,4.00959]
[1610272543724,4.00959,1337.6,1337.5,4.00959]
[1610272544624,1.6565583,1337.7,1337.5,4.00959]
[1610272545022,16.7284545,1339.4,1337.5,4.00959]
[1610272545423,16.7284545,1339.4,1339.3,3.6706145]
[1610272545723,20.7380445,1339.4,1338.6,4.12944132]
[1610272545923,16.7284545,1339.3,1338.6,4.12944132]
[1610272546824,16.7284545,1339.3,1338.5,4.12956341]
[1610272547427,16.7284545,1339.3,1338.4,4.12946771]
[1610272547826,20.7380445,1338.5,1338.4,4.12946771]
[1610272548727,20.7380445,1338.5,1337.6,4.58839676]
[1610272549829,16.7284545,1337.8,1337.6,4.58839676]
[1610272551738,4.00959,1337.7,1337.6,4.58839676]
[1610272551932,1.8648,1337.9,1337.6,4.58839676]
[1610272553735,20.7380445,1337.7,1337.6,4.58839676]
[1610272554236,20.7380445,1337.7,1337.5,4.58837192]
[1610272557037,4.00959,1337.7,1337.5,4.58837192]
[1610272557437,1.8648,1337.9,1337.5,4.58837192]
[1610272557637,22.4359545,1339.3,1337.5,4.58837192]
[1610272557839,22.4359545,1339.3,1338.0,4.00959]
[1610272558137,22.4359545,1339.3,1339.0,3.67055935]
[1610272558436,22.4359545,1339.3,1338.0,4.00959]
[1610272558638,59.7623,1339.0,1338.0,4.00959]
[1610272558839,16.7284545,1338.9,1337.5,4.58837192]
[1610272559039,16.7284545,1338.9,1338.4,4.129269]
[1610272559741,4.00959,1338.5,1338.3,4.1293284]
[1610272559939,16.7284545,1338.4,1338.3,4.1293284]
[1610272561043,16.7284545,1338.4,1337.8,4.00959]
[1610272561745,16.7284545,1338.4,1338.2,4.00959]
[1610272561944,1.7102,1338.5,1338.4,5.0]
[1610272563748,1.7102,1338.5,1338.4,9.00959]
[1610272565452,61.8771,1339.0,1338.4,9.00959]
[1610272565752,61.8771,1339.0,1338.9,4.00959]
[1610272569052,2.1148,1339.0,1338.9,4.00959]
[1610272569652,2.1023,1339.4,1338.9,4.00959]
[1610272569853,1.52753926,1339.6,1339.3,4.00959]
[1610272570054,1.52753926,1339.6,1338.7,4.5843596]
[1610272570254,1.52753926,1339.6,1339.5,4.12600529]
[1610272570654,1.52753926,1339.6,1339.4,4.12602913]
[1610272571152,3.90793926,1339.6,1339.4,4.12602913]
[1610272573056,3.90793926,1339.6,1339.5,4.12590103]
[1610272577461,20.63639376,1339.6,1339.5,4.12590103]
[1610272577761,20.63639376,1339.6,1339.4,4.12605454]
[1610272579565,3.90793926,1339.6,1339.4,4.12605454]
[1610272580365,3.90793926,1339.6,1339.5,4.12603005]
[1610272581266,3.90793926,1339.6,1339.4,4.12593426]
[1610272581567,3.90793926,1339.6,1339.5,4.12585415]
[1610272583468,20.63639376,1339.6,1339.5,4.12585415]
[1610272584169,20.63639376,1339.6,1339.4,4.12592954]
[1610272584570,20.63639376,1339.6,1339.3,4.12607487]
[1610272586077,4.00959,1339.4,1339.3,4.12607487]
[1610272586274,20.7380445,1339.4,1339.3,4.12607487]
[1610272586473,20.7380445,1339.4,1339.2,4.12646042]
[1610272586873,20.7380445,1339.4,1339.1,4.12684094]
[1610272587073,20.7380445,1339.4,1339.0,4.12703709]
[1610272587475,20.7380445,1339.4,1338.9,4.12716286]
[1610272588075,4.00959,1339.0,1338.9,4.12716286]
[1610272588276,20.7380445,1339.0,1338.8,4.12766723]
[1610272588476,22.7219445,1339.0,1338.8,4.12766723]
[1610272588676,54.7918,1338.9,1338.7,4.12777876]
[1610272588875,16.7284545,1338.8,1338.7,4.12777876]
[1610272589076,16.7284545,1338.8,1335.9,6.42098919]
[1610272589077,16.7284545,1338.8,1338.5,4.12797021]
[1610272589477,11.7284545,1338.8,1338.5,4.12797021]
[1610272589677,11.7284545,1338.8,1338.4,4.12811424]
[1610272589976,11.7284545,1338.8,1338.5,4.12819178]
[1610272590177,15.7380445,1338.6,1338.5,4.12819178]
[1610272590380,17.8367445,1338.6,1338.4,4.12827634]
[1610272591680,17.8367445,1338.6,1338.5,4.12812768]
[1610272592585,17.8367445,1338.6,1338.4,4.12826822]
[1610272593685,17.8367445,1338.6,1338.5,4.12815079]
[1610272594086,6.10829,1338.6,1338.5,4.12815079]
[1610272594285,17.8367445,1338.6,1338.5,4.12815079]
[1610272594988,13.250111,1338.6,1338.5,4.12815079]
[1610272595790,13.250111,1338.6,1338.2,4.12794222]
[1610272596191,4.00959,1338.3,1338.2,4.12794222]
[1610272596394,6.12919,1338.3,1338.2,4.12794222]
[1610272597392,13.14099,1338.3,1338.2,4.12794222]
[1610272597591,13.14099,1338.3,1337.8,4.00959]
[1610272597791,13.14099,1338.3,1338.2,4.12793352]
[1610272599192,24.8694445,1338.3,1338.2,4.12793352]
[1610272599392,24.8694445,1338.3,1338.0,4.00959]
[1610272600894,24.8694445,1338.3,1338.2,4.1278645]
[1610272602296,24.8694445,1338.3,1338.1,4.12831423]
[1610272602496,24.8694445,1338.3,1338.0,4.12843331]
[1610272603098,24.8694445,1338.3,1337.9,4.12858741]
[1610272603799,24.8694445,1338.3,1337.8,4.12863705]
[1610272604198,4.00959,1337.9,1337.8,4.12863705]
[1610272604400,13.6396545,1337.9,1337.8,4.12863705]
[1610272604798,13.6396545,1337.9,1337.4,4.00959]
[1610272605397,1.9112,1337.9,1337.4,4.00959]
[1610272606300,4.00959,1337.6,1337.4,4.00959]
[1610272606800,5.57609,1337.6,1337.4,4.00959]
[1610272607200,1.5665,1337.6,1337.4,4.00959]
[1610272608302,13.2949545,1337.6,1337.4,4.00959]
[1610272609503,13.2949545,1337.6,1336.8,4.58823311]
[1610272610304,4.00959,1337.3,1337.2,4.00959]
[1610272610504,2.1101,1337.3,1337.2,4.00959]
[1610272610905,13.8385545,1337.3,1337.2,4.00959]
[1610272611905,2.1101,1337.3,1337.2,4.00959]
[1610272612106,13.8385545,1337.3,1337.2,4.00959]
[1610272612307,17.8481445,1337.3,1337.2,4.00959]
[1610272614108,17.8481445,1337.3,1336.8,4.58823311]
[1610272614306,13.8385545,1337.3,1337.0,4.00959]
[1610272616207,4.00959,1337.1,1337.0,4.00959]
[1610272616508,15.7380445,1337.1,1337.0,4.00959]
[1610272617108,11.7284545,1337.1,1337.0,4.00959]
[1610272617509,2.1101,1337.3,1337.0,4.00959]
[1610272617708,1.5665,1337.6,1337.0,4.00959]
[1610272617909,1.9112,1337.9,1337.0,4.00959]
[1610272618112,11.7284545,1338.2,1337.0,4.00959]
[1610272618310,11.7284545,1338.2,1337.6,4.00959]
[1610272618509,11.7284545,1338.2,1337.7,4.12898325]
[1610272620013,11.7284545,1338.2,1337.6,4.12933312]
[1610272620213,4.00959,1337.7,1337.6,4.12933312]
[1610272620413,15.7380445,1337.7,1337.6,4.12933312]
[1610272620613,13.6065545,1337.7,1337.6,4.12933312]
[1610272620812,13.6065545,1337.7,1337.5,4.12956238]
[1610272621514,13.6065545,1337.7,1337.4,4.12967766]
[1610272622315,15.7380445,1337.5,1337.4,4.12967766]
[1610272622815,15.7380445,1337.5,1337.3,4.12995805]
[1610272626324,4.00959,1337.5,1337.3,4.12995805]
[1610272627127,4.00959,1337.5,1337.4,4.12963976]
[1610272627524,4.00959,1337.5,1337.2,4.00959]
[1610272627925,1.8781,1337.7,1337.2,4.00959]
[1610272628126,105.6594,1338.0,1337.2,4.00959]
[1610272628325,105.6594,1338.0,1336.5,4.58897432]
[1610272628326,105.6594,1338.0,1337.9,4.00959]
[1610272628725,117.3878545,1338.0,1337.8,4.12891815]
[1610272628926,119.7032545,1338.0,1337.8,4.12891815]
[1610272629325,119.7032545,1338.0,1337.7,4.12895839]
[1610272630229,4.00959,1337.8,1337.7,8.13854839]
[1610272630727,15.7380445,1337.8,1337.7,4.12895839]
[1610272631327,15.7380445,1337.8,1337.6,4.12936294]
[1610272631528,15.7380445,1337.8,1337.5,4.12931103]
[1610272632029,15.7380445,1337.8,1337.6,4.12934436]
[1610272632630,15.7380445,1337.8,1337.4,4.12978684]
[1610272632833,15.7380445,1337.8,1337.2,4.13038239]
[1610272633231,15.7380445,1337.8,1337.7,3.67185526]
[1610272633631,15.7380445,1337.8,1337.6,3.67211076]
[1610272634232,15.7380445,1337.8,1337.5,3.67221393]
[1610272634932,15.7380445,1337.8,1337.6,3.67239672]
[1610272635633,15.7380445,1337.8,1336.9,4.13124232]
[1610272635834,15.7380445,1337.8,1336.8,4.13186257]
[1610272636233,4.00959,1336.9,1336.7,4.13200985]
[1610272636434,11.7284545,1336.8,1336.6,4.13216045]
[1610272637134,11.7284545,1336.8,1336.5,4.13227384]
[1610272637536,11.7284545,1336.8,1336.4,4.132949]
[1610272638436,11.7284545,1336.8,1336.5,4.00959]
[1610272638637,11.7284545,1336.8,1336.6,4.13242141]
[1610272639038,2.1563,1336.9,1336.5,8.14201637]
[1610272639437,2.1563,1336.9,1336.6,4.13232025]
[1610272640341,4.00959,1336.7,1336.5,4.00959]
[1610272640539,15.7380445,1336.7,1335.6,4.59246992]
[1610272640741,15.7380445,1336.7,1336.6,4.13247746]
[1610272640944,15.7380445,1336.7,1336.5,4.13267671]
[1610272642445,15.7380445,1336.7,1336.4,4.13298834]
[1610272644247,15.7380445,1336.7,1336.3,4.13328568]
[1610272644447,4.00959,1336.5,1336.3,4.13328568]
[1610272644647,11.7284545,1336.4,1336.0,4.13403935]
[1610272645048,11.7284545,1336.4,1335.9,4.1345924]
[1610272645248,11.7284545,1336.4,1335.7,4.13492492]
[1610272645451,11.7284545,1336.4,1334.9,4.59436103]
[1610272645649,11.7284545,1336.4,1335.7,4.13517993]
[1610272646151,11.7284545,1336.4,1336.3,3.67581717]
[1610272646354,11.7284545,1336.4,1336.2,3.67575938]
[1610272648353,4.00959,1336.3,1336.2,3.67575938]
[1610272648554,15.7380445,1336.3,1336.2,3.67575938]
[1610272648754,15.7380445,1336.3,1335.5,4.13514643]
[1610272650456,5.68639,1335.6,1335.5,4.00959]
[1610272650855,1.09231329,1335.6,1335.5,4.00959]
[1610272651757,1.09231329,1335.6,1334.7,4.59492549]
[1610272651958,11.7284545,1336.1,1335.6,1.90768671]
[1610272652158,11.7284545,1336.1,1335.7,4.13477548]
[1610272652358,15.7380445,1335.8,1335.7,4.13477548]
[1610272652558,18.1835445,1335.8,1335.7,4.13477548]
[1610272652758,18.1835445,1335.8,1335.6,6.04270152]
[1610272653759,18.1835445,1335.8,1335.6,1.90768671]
[1610272658863,18.1835445,1335.8,1335.6,5.58437448]
[1610272659264,18.1835445,1335.8,1335.7,3.67641665]
[1610272659464,18.1835445,1335.8,1335.6,1.90768671]
[1610272660764,6.45509,1335.8,1335.6,1.90768671]
[1610272661064,2.4455,1335.8,1335.6,1.90768671]
[1610272661263,1.7411,1335.8,1335.6,1.90768671]
[1610272661864,1.7411,1335.8,1335.6,6.0422496]
[1610272662064,1.7411,1335.8,1335.6,1.90768671]
[1610272662467,4.00959,1335.7,1335.6,1.90768671]
[1610272662666,15.7380445,1335.7,1335.6,1.90768671]
[1610272665170,15.7380445,1335.7,1335.6,5.58427144]
[1610272666071,15.7380445,1335.7,1335.6,1.90768671]
[1610272667772,15.7380445,1335.7,1335.3,3.67738786]
[1610272667972,15.7380445,1335.7,1335.2,3.67749006]
[1610272668172,15.7380445,1335.7,1335.1,3.67781224]
[1610272668572,11.7284545,1335.1,1335.0,3.67803643]
[1610272668773,11.7284545,1335.1,1334.8,3.67822754]
[1610272669774,11.7284545,1335.1,1334.9,3.67812959]
[1610272669974,11.7284545,1335.1,1335.0,3.678075]
[1610272670676,11.7284545,1335.1,1334.9,3.67820388]
[1610272671074,11.7284545,1335.1,1334.8,3.67853731]
[1610272671477,11.7284545,1335.1,1334.6,3.67874947]
[1610272672075,11.7284545,1335.1,1333.9,4.13879407]
[1610272672475,15.7380445,1334.0,1333.9,4.13879407]
[1610272672674,15.7380445,1334.0,1333.6,4.00959]
[1610272672675,18.2338445,1334.0,1333.7,4.13912103]
[1610272673276,18.2338445,1334.0,1333.8,4.1390112]
[1610272673877,6.50539,1334.0,1333.7,4.13915118]
[1610272674477,6.50539,1334.0,1333.8,4.1389811]
[1610272674676,18.2338445,1334.0,1333.8,4.1389811]
[1610272675577,18.2338445,1334.0,1333.0,4.14070092]
[1610272675777,18.2338445,1334.0,1332.9,4.14100772]
[1610272676479,4.00959,1333.0,1332.7,4.14199408]
[1610272676680,11.7284545,1332.9,1332.7,4.14199408]
[1610272676881,11.7284545,1332.9,1332.4,4.14244885]
[1610272677784,5.63799,1333.0,1332.4,4.14244885]
[1610272677984,11.7284545,1332.9,1332.4,4.14244885]
[1610272678484,4.00959,1332.8,1332.5,4.00959]
[1610272678687,4.00959,1332.8,1332.5,8.15183781]
[1610272678887,15.7380445,1332.8,1332.5,8.15183781]
[1610272679087,11.7284545,1332.8,1332.6,4.14214907]
[1610272679787,11.7284545,1332.8,1332.5,8.15198293]
[1610272679987,11.7284545,1332.8,1332.5,4.14239293]
[1610272680588,11.7284545,1332.5,1332.4,4.14297874]
[1610272680788,11.7284545,1332.5,1332.3,4.14330305]
[1610272681189,11.7284545,1332.5,1332.1,4.14343743]
[1610272681791,11.7284545,1332.5,1332.0,4.14349461]
[1610272682189,11.7284545,1332.5,1331.9,4.14384771]
[1610272682392,11.7284545,1332.5,1331.8,4.14388322]
[1610272682590,15.7380445,1331.9,1331.8,4.14388322]
[1610272682991,15.7380445,1331.9,1331.6,4.14448145]
[1610272683189,15.7380445,1331.9,1331.5,4.1446747]
[1610272683590,15.7380445,1331.9,1331.3,4.1452311]
[1610272684591,11.7284545,1331.3,1331.2,4.14585676]
[1610272684992,11.7284545,1331.3,1331.0,4.14609848]
[1610272685192,11.7284545,1331.3,1330.9,4.14634233]
[1610272685794,17.9951445,1331.4,1330.8,4.14676317]
[1610272686593,4.00959,1331.2,1331.0,4.00959]
[1610272686995,2.2571,1331.4,1331.0,8.15624259]
[1610272687194,2.2571,1331.4,1331.2,4.14602141]
[1610272687594,2.2571,1331.4,1331.3,4.14595823]
[1610272687993,2.2571,1331.4,1331.0,4.00959]
[1610272688494,2.2571,1331.4,1331.3,4.00959]
[1610272689894,2.431,1332.6,1331.3,4.00959]
[1610272690094,5.6714,1333.9,1331.9,4.14451306]
[1610272690294,32.1554,1332.5,1331.9,4.14451306]
[1610272690696,5.56719,1332.0,1331.9,4.14451306]
[1610272690895,5.56719,1332.0,1331.8,4.14491178]
[1610272691296,5.56719,1332.0,1331.7,4.14514848]
[1610272691895,5.56719,1332.0,1331.6,4.14512124]
[1610272692196,5.56719,1332.0,1331.7,4.14505304]
[1610272692400,1.5576,1332.0,1331.7,4.14505304]
[1610272692594,1.5576,1332.0,1331.9,4.00959]
[1610272692795,1.5576,1332.0,1331.9,8.15409428]
[1610272693197,1.5576,1332.0,1331.9,4.00959]
[1610272695697,4.00959,1332.2,1331.9,4.00959]
[1610272695897,30.0,1333.8,1331.9,4.00959]
[1610272696098,30.0,1333.8,1332.2,4.14418868]
[1610272696399,30.0,1333.8,1332.9,3.68377095]
[1610272696599,4.00959,1333.0,1332.3,4.00959]
[1610272696798,30.0,1332.9,1332.3,4.00959]
[1610272697804,31.8395,1332.9,1332.3,4.00959]
[1610272698002,31.8395,1332.9,1332.3,8.1536781]
[1610272698202,31.8395,1332.9,1332.2,4.14418895]
[1610272698603,4.00959,1332.3,1332.2,8.15377895]
[1610272698905,5.85849,1332.3,1332.2,8.15377895]
[1610272699504,5.85849,1332.3,1332.2,4.00959]
[1610272699706,5.85849,1332.3,1332.1,4.14439175]
[1610272700408,5.85849,1332.3,1332.0,4.14473274]
[1610272700605,4.00959,1332.1,1332.0,4.14473274]
[1610272700809,4.00959,1332.1,1331.9,4.14495188]
[1610272702209,34.00959,1332.1,1331.9,4.14495188]
[1610272702610,34.00959,1332.1,1331.6,4.14566337]
[1610272703011,34.00959,1332.1,1331.5,4.14587266]
[1610272703212,4.00959,1332.1,1331.5,4.14587266]
[1610272703411,4.00959,1332.1,1331.6,4.14578182]
[1610272703813,34.00959,1332.1,1331.6,4.14578182]
[1610272704013,34.00959,1332.1,1331.7,4.14554602]
[1610272704314,30.0,1332.1,1331.8,4.14536499]
[1610272704715,25.39428955,1332.1,1332.0,4.00959]
[1610272704914,1.8489,1332.3,1332.0,4.00959]
[1610272705114,25.39428955,1332.4,1332.0,4.00959]
[1610272706614,4.00959,1332.1,1331.8,4.00959]
[1610272706816,25.39428955,1332.0,1331.7,4.14561005]
[1610272707217,25.39428955,1332.0,1331.6,4.14563104]
[1610272707416,25.39428955,1332.0,1331.7,4.14567508]
[1610272708118,25.39428955,1332.0,1331.6,4.14571151]
[1610272708616,4.00959,1331.7,1331.6,4.14571151]
[1610272708817,25.39428955,1332.0,1331.5,8.15557094]
[1610272709218,25.39428955,1332.0,1331.6,4.14586143]
[1610272709418,25.39428955,1332.0,1331.7,4.1456094]
[1610272709917,25.39428955,1331.9,1331.7,4.1456094]
[1610272710119,25.39428955,1331.7,1331.5,4.14579561]
[1610272710320,24.01248955,1331.7,1331.5,4.14579561]
[1610272710521,24.01248955,1331.7,1331.4,4.14595707]
[1610272711120,24.01248955,1331.7,1331.5,4.1458209]
[1610272711320,49.65469,1331.8,1331.5,4.1458209]
[1610272711721,73.66717955,1331.8,1331.5,4.1458209]
[1610272712423,69.65758955,1331.8,1331.5,4.1458209]
[1610272712623,69.65758955,1331.8,1331.7,4.00959]
[1610272712823,45.6451,1331.8,1331.7,4.00959]
[1610272714924,2.4685,1331.8,1331.7,4.00959]
[1610272715125,26.48098955,1331.8,1331.7,4.00959]
[1610272715326,26.48098955,1331.8,1331.7,4.14510186]
[1610272715625,26.48098955,1331.8,1331.6,4.14526073]
[1610272716325,26.48098955,1331.8,1331.5,4.14552689]
[1610272716725,28.02207955,1331.6,1331.5,8.15511689]
[1610272717932,28.02207955,1331.6,1331.5,4.00959]
[1610272718132,28.02207955,1331.6,1331.4,4.14582219]
[1610272718931,28.02207955,1331.6,1331.3,4.14612988]
[1610272719133,28.02207955,1331.6,1331.2,4.14671243]
[1610272719534,28.02207955,1331.6,1330.9,4.14725969]
[1610272719733,28.02207955,1331.6,1331.4,3.68657218]
[1610272720134,28.02207955,1331.6,1330.7,4.14784719]
[1610272720334,28.02207955,1331.6,1328.1,3.405]
[1610272720335,28.02207955,1331.6,1330.5,4.14786715]
[1610272720835,28.02207955,1330.6,1330.5,4.14786715]
[1610272721037,29.66257955,1330.6,1330.4,4.1484425]
[1610272722237,29.66257955,1330.6,1330.3,4.14869903]